[Event "1st Kallai Gabor Memorial 2022"]
[Site "Budapest"]
[Date "2022.11.29"]
[Round "4.3"]
[White "Kozak, Adam"]
[Black "Horvath, Csaba"]
[Result "1-0"]
[ECO "A28"]
[WhiteElo "2538"]
[BlackElo "2502"]
[Annotator "TA"]
[PlyCount "85"]
[EventDate "2022.11.28"]
[EventCountry "HUN"]
[SourceTitle "playchess.com"]
[Source "ChessBase"]
[SourceQuality "1"]
[TimeControl "1500+5"]

{[%evp 9,85,0,2,7,14,15,16,15,11,8,11,13,12,5,13,9,14,12,16,16,24,8,14,8,11,1,23,29,45,44,41,52,40,49,77,84,92,90,71,71,107,104,114,116,116,121,126,119,140,133,196,195,201,204,203,196,219,196,226,150,218,220,329,310,329,328,858,856,830,815,1046,1028,1353,1243,1049,964,981,892]} 1. c4 {[%emt 0:00:09]} e5 {[%emt 0:00:14]} 2. Nc3 {[%emt 0:00:03]} Nf6 {[%emt 0:00:04]} 3. Nf3 {[%emt 0:00:10]} Nc6 {[%emt 0:00:12]} 4. e4 {[%emt 0:00:19]} Bb4 {[%emt 0:00:06]} 5. d3 {[%emt 0:00:02]} d6 {[%emt 0:00:03]} 6. a3 {[%emt 0:00:15] A28: English Opening: Four Knights Variation.} Bc5 {[%emt 0:00:05]} 7. b4 {[%emt 0:00:40]} Bb6 {[%emt 0:00:24]} 8. Be3 {[%emt 0:00:02] The position is equal.} Bg4 {[%emt 0:01:03] outshines the older 8...0-0.} 9. Be2 {[%emt 0:00:01]} Bxf3 {[%emt 0:00:37]} 10. Bxf3 {[%emt 0:00:02]} Nd4 {[%emt 0:00:25]} 11. O-O {[%emt 0:00:23]} (11. Na4 {simplifies} Nxf3+ 12. Qxf3 Bxe3 13. Qxe3 O-O 14. O-O) 11... O-O {[%emt 0:00:21]} 12. Na4 {[%emt 0:00:02]} Nxf3+ {[%emt 0:00:54]} 13. Qxf3 {[%emt 0:00:01]} Bxe3 {[%emt 0:00:17]} 14. Qxe3 {[%emt 0:00:02]} Ng4 {[%emt 0:05:48] [#]} 15. Qg3 $146 {[%emt 0:03:26]} ({Predecessor:} 15. Qd2 f5 16. exf5 Rxf5 17. f3 Nh6 18. Nc3 Qh4 19. Rae1 Raf8 20. Re4 Qh5 21. Qf2 {1-0 (71) Vakhidov,J (2589)-Iniyan,P (2556) Tashkent 2022}) 15... f5 {[%emt 0:03:49]} 16. Nc3 {[%emt 0:01:34]} Qd7 {[%emt 0:02:33]} 17. Rad1 {[%emt 0:01:28]} Nf6 {[%emt 0:00:48]} 18. Qh3 {[%emt 0:01:33]} g6 {[%emt 0:02:55]} 19. exf5 {[%emt 0:02:02]} Qxf5 {[%emt 0:00:13]} 20. Qxf5 {[%emt 0:00:56]} gxf5 {[%emt 0:00:02]} 21. f4 {[%emt 0:00:11] aiming for fxe5.} exf4 {[%emt 0:01:49]} 22. Rxf4 {[%emt 0:00:07] White stays focused until the end.} Nh5 {[%emt 0:00:02]} 23. Rf3 {[%emt 0:00:32]} c6 {[%emt 0:00:37]} 24. d4 {[%emt 0:04:49]} Ng7 {[%emt 0:00:01]} 25. d5 {[%emt 0:00:35] Black must now prevent dxc6.} Rac8 {[%emt 0:00:01]} 26. dxc6 {[%emt 0:00:22]} Rxc6 {[%emt 0:00:04]} 27. Nb5 {[%emt 0:00:15][%csl LRa7,LRd6]} Rxc4 {[%emt 0:00:19]} 28. Nxa7 {[%emt 0:00:49] White is more active.} Re8 {[%emt 0:00:38]} 29. Nb5 {[%emt 0:00:59]} (29. Rxd6 $6 Rc1+ 30. Rf1 Rc2 $14) 29... Rc2 {[%emt 0:00:25] [#]} (29... Re2 $16) 30. Rf2 $1 $18 {[%emt 0:00:09]} ({Don't do} 30. Nxd6 $6 Ree2 $14) ({Stronger than} 30. Rxd6 Re1+ 31. Rf1 Ree2 $11) 30... Rc6 {[%emt 0:00:37]} 31. Nxd6 {[%emt 0:00:39]} Rd8 {[%emt 0:00:15]} 32. Rfd2 {[%emt 0:00:06]} b6 {[%emt 0:00:15]} 33. Rd3 {[%emt 0:01:42]} Rc2 {[%emt 0:00:08]} 34. h3 {[%emt 0:01:42][%cal Od6f5]} Ra2 {[%emt 0:00:07]} (34... f4 $16 35. Ne4 Rxd3 36. Rxd3 Ra2) 35. Nc4 {[%emt 0:00:41][%csl LRb6,LRd8]} Re8 {[%emt 0:00:34]} (35... Rxd3 $142 36. Rxd3 b5) 36. Nxb6 {[%emt 0:00:27]} Ree2 {[%emt 0:00:13] [#]} 37. Rg3 {[%emt 0:00:09]} ({Worse is} 37. Rd8+ Kf7 $11) 37... f4 $2 {[%emt 0:00:26]} (37... Kf8 38. Rf1 Re4) 38. Rd8+ {[%emt 0:00:37] White is clearly winning.} Kf7 {[%emt 0:00:01]} 39. Rd7+ {[%emt 0:00:01]} Kf6 {[%emt 0:00:39]} 40. Rgxg7 {[%emt 0:00:03]} Ra1+ {[%emt 0:00:13]} 41. Kh2 {[%emt 0:00:02]} Ree1 {[%emt 0:00:02]} 42. Rdf7+ {[%emt 0:00:09]} (42. Rxh7 $2 Rh1#) 42... Ke6 {[%emt 0:00:07]} 43. Re7+ {[%emt 0:00:02] Weighted Error Value: White=0.05 (flawless) /Black=0.18 (very precise)} (43. Rxh7 $2 Rh1#) 1-0

[Event "1st Kallai Gabor Memorial 2022"]
[Site "Budapest"]
[Date "2022.11.29"]
[Round "4.4"]
[White "Bjerre, Jonas Buhl"]
[Black "Borhy, Marcell"]
[Result "1-0"]
[ECO "A06"]
[WhiteElo "2622"]
[BlackElo "2407"]
[Annotator "TA"]
[PlyCount "71"]
[EventDate "2022.11.28"]
[EventCountry "HUN"]
[SourceTitle "playchess.com"]
[Source "ChessBase"]
[SourceQuality "1"]
[TimeControl "1500+5"]

{[%evp 20,71,26,19,16,0,24,21,17,8,50,14,32,25,22,37,43,45,43,54,56,51,36,27,38,16,19,0,0,-10,-10,-7,0,12,8,0,0,0,0,0,45,42,40,38,108,73,73,70,246,242,379,377,368,332]} 1. Nf3 {[%emt 0:00:08]} d5 {[%emt 0:00:11]} 2. g3 {[%emt 0:00:02]} Nf6 {[%emt 0:00:34]} 3. Bg2 {[%emt 0:00:02]} e6 {[%emt 0:00:02]} 4. O-O {[%emt 0:00:08]} Be7 {[%emt 0:00:02]} 5. c4 {[%emt 0:00:32]} O-O {[%emt 0:00:03]} 6. d4 {[%emt 0:00:28]} dxc4 {[%emt 0:00:08]} 7. Qc2 {[%emt 0:00:04]} a6 {[%emt 0:00:03]} 8. a4 {[%emt 0:00:08]} Bd7 {[%emt 0:00:02]} 9. Qxc4 {[%emt 0:00:06]} Bc6 {[%emt 0:00:03]} 10. Bf4 {[%emt 0:01:02]} Nbd7 {[%emt 0:00:56]} 11. Nc3 {[%emt 0:00:28] 11.Qc1 is more fashionable.} Bd6 {[%emt 0:00:27] E05: Open Catalan: 5 Nf3 Be7.} 12. Bd2 {[%emt 0:01:55]} Ne4 {[%emt 0:04:25]} 13. Nxe4 {[%emt 0:00:02]} Bxe4 {[%emt 0:00:02] The position is equal.} 14. Rfd1 {[%emt 0:00:04] [#]} Qb8 $146 {[%emt 0:02:10]} ({Predecessor:} 14... Nb6 15. Qb3 a5 16. Ne1 Bd5 17. Qc2 Bxg2 18. Kxg2 Qe7 19. Nd3 Rfd8 20. e4 c6 {1-0 (61) Bjerre,J (2559)-Ramsdal,J (2283) Aarhus 2020}) 15. Ng5 {[%emt 0:01:44]} Bxg2 {[%emt 0:00:18]} (15... b5 {looks sharper.} 16. axb5 axb5 17. Qc3 Bxg2 18. Kxg2 Nf6) 16. Kxg2 {[%emt 0:00:06]} Nf6 {[%emt 0:00:47]} 17. Qc2 $1 {[%emt 0:00:44]} h6 {[%emt 0:01:08] Inhibits e4.} 18. Nf3 {[%emt 0:00:01]} Nd5 {[%emt 0:00:46]} 19. e4 {[%emt 0:01:27] Against f5} Nb4 {[%emt 0:00:02]} 20. Bxb4 {[%emt 0:00:23]} (20. Qc4 $5 {[%cal Rd2b4]} b5 21. axb5 Qxb5 22. Qxb5 axb5 23. Bxb4 Bxb4 24. Ne5 $16) 20... Bxb4 {[%emt 0:00:02]} 21. Ne5 {[%emt 0:00:02] [#] Threatens to win with Nd7.} Rd8 {[%emt 0:00:21][%cal Oc7c5] Prevents Nd7.} 22. Qc4 {[%emt 0:03:21]} a5 {[%emt 0:02:12][%cal Oc7c5]} 23. d5 {[%emt 0:03:49]} c6 $1 {[%emt 0:03:29]} 24. Nf3 {[%emt 0:00:50]} cxd5 {[%emt 0:00:53]} 25. exd5 {[%emt 0:00:01]} Qc8 {[%emt 0:00:50]} 26. Qxc8 {[%emt 0:01:00]} Raxc8 {[%emt 0:00:02]} 27. dxe6 {[%emt 0:00:01]} fxe6 {[%emt 0:00:03]} 28. Rxd8+ {[%emt 0:00:02]} Rxd8 $11 {[%emt 0:00:03][%mdl 4096] Endgame KRB-KRN} 29. Rc1 {[%emt 0:00:02]} Rd6 {[%emt 0:00:41]} 30. Rc8+ {[%emt 0:00:47]} Kh7 {[%emt 0:00:06]} 31. h4 {[%emt 0:00:02]} h5 {[%emt 0:01:14]} ({Better is} 31... b6 $14) 32. Ng5+ {[%emt 0:00:31]} Kg6 {[%emt 0:00:01]} 33. Re8 {[%emt 0:00:06] White is more active.} Bd2 $2 (33... Rd2 $14) 34. Ne4 $18 {[%emt 0:00:43]} (34. Nxe6 Rb6 $16) (34. Rxe6+ Rxe6 35. Nxe6 Kf6 $16) 34... Rd4 {[%emt 0:01:51] [#]} (34... Rd5 {was worth a try.} 35. Nxd2 (35. Rxe6+ Kf5 $16) 35... Kf7) 35. Nxd2 $1 {[%emt 0:00:09]} ({Weaker is} 35. Rxe6+ Kf5 36. Nc5 Bb4 $11) 35... Rxd2 {[%emt 0:00:10]} 36. Rxe6+ {[%emt 0:00:01] Weighted Error Value: White=0.06 (flawless) /Black=0.31} 1-0

[Event "1st Kallai Gabor Memorial 2022"]
[Site "Budapest"]
[Date "2022.11.29"]
[Round "4.5"]
[White "Ruck, Robert"]
[Black "Berkes, Ferenc"]
[Result "1/2-1/2"]
[ECO "D15"]
[WhiteElo "2537"]
[BlackElo "2643"]
[Annotator "TA"]
[PlyCount "30"]
[EventDate "2022.11.28"]
[EventCountry "HUN"]
[SourceTitle "playchess.com"]
[Source "ChessBase"]
[SourceQuality "1"]
[TimeControl "1500+5"]

{[%evp 10,30,10,7,8,8,15,4,12,3,16,12,0,10,17,21,16,14,17,16,27,22,25]} 1. Nf3 {[%emt 0:00:08]} d5 {[%emt 0:00:06]} 2. d4 {[%emt 0:00:02]} c6 {[%emt 0:00:06]} 3. c4 {[%emt 0:00:03]} Nf6 4. Nc3 {[%emt 0:00:05]} a6 {[%emt 0:00:02]} 5. a4 {[%emt 0:01:39]} e6 {[%emt 0:00:03]} 6. Bg5 {[%emt 0:00:08]} a5 {[%emt 0:00:39] D15: Slav Defence: 4 Nc3 a6 and gambit lines after 4 Nc3 dxc4.} 7. e3 {[%emt 0:00:12]} Be7 {[%emt 0:00:02]} 8. Be2 {[%emt 0:01:16] The main line 8.Be2 scores better than 8.Bd3.} O-O {[%emt 0:00:03]} 9. O-O {[%emt 0:00:03]} Na6 {[%emt 0:00:01]} 10. Ne5 {[%emt 0:00:10]} Nd7 {[%emt 0:00:17]} 11. Bf4 {[%emt 0:01:56]} Nb4 {[%emt 0:00:30]} 12. Na2 {[%emt 0:00:34]} Nxe5 {[%emt 0:04:48]} 13. Bxe5 {[%emt 0:00:10]} Nxa2 {[%emt 0:00:03]} 14. Rxa2 {[%emt 0:00:03]} Bd6 {[%emt 0:00:06] [#]} 15. Bxd6 $146 {[%emt 0:00:30]} ({Predecessor:} 15. Bg3 Bxg3 16. hxg3 dxc4 17. Bxc4 Qe7 18. b3 e5 19. Rd2 exd4 20. Rxd4 Be6 21. Bxe6 Qxe6 {½-½ (38) Talla,V (2402)-Czerw,D (2286) Czech Republic 2018}) 15... Qxd6 {[%emt 0:00:01] An even fight not without its subleties.   Weighted Error Value: White=0.01 (flawless) /Black=0.03 (flawless)} 1/2-1/2

[Event "1st Kallai Gabor Memorial 2022"]
[Site "Budapest"]
[Date "2022.11.29"]
[Round "5.1"]
[White "Horvath, Csaba"]
[Black "Bjerre, Jonas Buhl"]
[Result "0-1"]
[ECO "A05"]
[WhiteElo "2502"]
[BlackElo "2622"]
[Annotator "TA"]
[PlyCount "82"]
[EventDate "2022.11.28"]
[EventType "tourn"]
[EventCountry "HUN"]
[SourceTitle "playchess.com"]
[Source "ChessBase"]
[SourceQuality "1"]
[TimeControl "1500+5"]

{[%evp 9,82,0,8,-43,-47,-47,-40,-43,-38,-35,-38,-41,-51,-50,-46,-49,-42,-40,-88,-79,-50,-44,-44,-51,-41,-36,-36,-38,-36,-29,-35,-26,-22,-35,-21,-33,-20,-37,-42,-155,-172,-163,-172,-166,-168,-164,-163,-163,-163,-217,-213,-212,-202,-214,-217,-334,-310,-397,-396,-418,-404,-445,-387,-470,-436,-448,-429,-802,-760,-717,-656,-730,-695,-551,-383]} 1. Nf3 {[%emt 0:00:08]} Nf6 {[%emt 0:00:31][%cal Bg8f6,Bf6d5,Bd5b4,Bb4a6,Ba6c7,Bc7e6,Be6f4][%mdl 32]} 2. b3 {[%emt 0:00:11]} c5 {[%emt 0:00:07]} 3. Bb2 {[%emt 0:00:10]} Nc6 {[%emt 0:00:06]} 4. c4 {[%emt 0:00:29]} d5 {[%emt 0:00:14]} 5. cxd5 {[%emt 0:00:24]} Nxd5 {[%emt 0:00:04]} 6. e3 {[%emt 0:03:15] A30: Symmetrical English: Double Fianchetto and Hedgehog.} (6. Nc3 $11) 6... Ndb4 $15 {[%emt 0:00:16]} 7. d3 {[%emt 0:01:30]} Bf5 {[%emt 0:00:09][%cal Rf5d3]} 8. e4 {[%emt 0:00:03] Black is slightly better.} Bg4 {[%emt 0:00:02]} 9. a3 $1 {[%emt 0:00:10]} Bxf3 {[%emt 0:00:05]} 10. gxf3 {[%emt 0:00:02]} Na6 {[%emt 0:00:04]} 11. f4 {[%emt 0:01:59] [#] Against e5} Nc7 $146 {[%emt 0:01:29]} ({Predecessor:} 11... e6 12. Nd2 Nc7 13. Nf3 Nb5 14. Bg2 Qa5+ 15. Qd2 Rd8 16. Ke2 Qb6 17. Rhc1 Be7 {0-1 (24) Haik,A (2435)-Chuchelov,V (2435) Hamburg 1991}) 12. Nd2 {[%emt 0:01:24]} Ne6 {[%emt 0:01:34]} 13. Nf3 Nxf4 {[%emt 0:01:22]} 14. d4 {[%emt 0:05:24] [#] And now d5 would win.} Qa5+ {[%emt 0:04:57]} (14... e6 $5 15. dxc5 Bxc5 $11) 15. Qd2 {[%emt 0:00:27] Hoping for Bc3.} Qxd2+ {[%emt 0:00:05]} 16. Kxd2 {[%emt 0:00:04]} cxd4 {[%emt 0:01:01]} (16... e6 {seems wilder.} 17. Ke3 Ng6 18. d5 exd5 19. exd5 Nce7) 17. Nxd4 {[%emt 0:00:48]} Nxd4 {[%emt 0:00:21]} 18. Bxd4 {[%emt 0:00:02] A strong pair of Bishops.} a6 {[%emt 0:00:01] Inhibits Bb5+.} 19. Ke3 {[%emt 0:02:40]} Ne6 {[%emt 0:00:02]} 20. Bb2 {[%emt 0:00:27]} Rg8 {[%emt 0:00:39]} 21. Bc4 {[%emt 0:01:11]} g6 {[%emt 0:00:08][%cal Bg7g6,Bg6g5,Bg5f4][%mdl 32]} 22. Bxe6 {[%emt 0:00:25]} fxe6 {[%emt 0:00:02]} 23. f4 {[%emt 0:02:01]} g5 {[%emt 0:00:32]} 24. Rac1 {[%emt 0:00:59] White is now going downhill.} (24. Be5 $15) 24... gxf4+ $17 {[%emt 0:00:24]} 25. Kf3 {[%emt 0:00:01][%cal Ob2e5]} Rd8 {[%emt 0:02:11] ...Rd3+ is the strong threat.} 26. Rhd1 {[%emt 0:00:05] Inhibits Rd3+.} Rxd1 {[%emt 0:00:13]} 27. Rxd1 $19 {[%emt 0:00:01][%cal Ob2e5][%mdl 4096] Endgame [#] KRB-KRB} Rg5 $1 {[%emt 0:00:30] Prevents Be5.} 28. Kxf4 {[%emt 0:01:20]} Rg2 {[%emt 0:00:09][%csl LRb2,LRh2]} 29. Bc3 {[%emt 0:00:29]} (29. Be5 {might work better.}) 29... Bh6+ {[%emt 0:01:11]} ({Not} 29... Rxh2 30. Kg3 Rc2 31. Bd4) 30. Kf3 {[%emt 0:00:05]} Rxh2 {[%emt 0:00:02] White must now prevent ...Rh3+.} 31. Be5 {[%emt 0:00:24]} Rh5 {[%emt 0:01:13]} ({Weaker is} 31... Rh3+ 32. Bg3 Bg7 33. Kg4) 32. Bc7 {[%emt 0:00:13]} (32. Bg3 $142) 32... Rc5 {[%emt 0:00:14]} 33. Rd8+ {[%emt 0:00:18]} Kf7 {[%emt 0:00:03]} 34. Rd7 {[%emt 0:00:20]} Rc3+ {[%emt 0:00:28]} 35. Kg4 {[%emt 0:00:03]} Rxb3 {[%emt 0:00:03]} 36. Bd6 {[%emt 0:00:11]} Bf8 {[%emt 0:00:04] Black is clearly winning.} 37. Bb4 {[%emt 0:00:12]} Kg6 {[%emt 0:02:29] Strongly threatening ...Bg7.} 38. Bxe7 {[%emt 0:00:12]} (38. Rd1 $142) 38... Bxe7 {[%emt 0:00:21]} 39. Rxe7 {[%emt 0:00:01]} Kf6 {[%emt 0:00:06]} (39... Rxa3 40. Rxe6+ Kf7 41. Rb6 $11) 40. Rxh7 {[%emt 0:00:02]} Ke5 {[%emt 0:00:02]} 41. a4 {[%emt 0:00:12]} Kxe4 {[%emt 0:00:05] Weighted Error Value: White=0.37/Black=0.04 (flawless)} 0-1

[Event "1st Kallai Gabor Memorial 2022"]
[Site "Budapest"]
[Date "2022.11.29"]
[Round "5.2"]
[White "Borhy, Marcell"]
[Black "Ruck, Robert"]
[Result "1/2-1/2"]
[ECO "D71"]
[WhiteElo "2407"]
[BlackElo "2537"]
[Annotator "TA"]
[PlyCount "107"]
[EventDate "2022.11.28"]
[EventType "tourn"]
[EventCountry "HUN"]
[SourceTitle "playchess.com"]
[Source "ChessBase"]
[SourceQuality "1"]
[TimeControl "1500+5"]

{[%evp 18,107,23,7,11,0,17,-28,-15,-26,-34,-30,0,0,0,-2,0,0,0,0,20,9,15,0,0,0,31,33,27,0,34,34,41,43,109,91,84,0,47,0,87,52,96,25,26,14,18,17,20,7,17,0,0,0,0,0,0,0,0,0,18,19,30,0,10,10,10,0,0,0,0,0,0,0,0,0,0,0,0,0,0,0,0,0,0,0,0,0,0,0,0,0]} 1. d4 {[%emt 0:00:08]} Nf6 {[%emt 0:00:06]} 2. c4 {[%emt 0:00:02]} g6 {[%emt 0:00:02]} 3. g3 {[%emt 0:00:03]} c6 {[%emt 0:00:01]} 4. Bg2 {[%emt 0:00:02]} d5 {[%emt 0:00:01]} 5. Qa4 {[%emt 0:00:01]} dxc4 {[%emt 0:00:01]} 6. Qxc4 {[%emt 0:00:02]} Bg7 {[%emt 0:00:02]} 7. Nf3 {[%emt 0:00:03]} O-O {[%emt 0:00:02]} 8. O-O {[%emt 0:00:05]} Bf5 {[%emt 0:00:02] 8...b5 is the modern continuation.} 9. Nc3 {[%emt 0:00:07]} Nbd7 {[%emt 0:00:02]} 10. e3 {[%cal Be2e3,Be3e4][%mdl 32]} Ne4 {[%emt 0:02:53] D78: Fianchetto Grünfeld: 6 0-0 c6.} 11. Qe2 {[%emt 0:05:40]} Nb6 {[%emt 0:02:03] [#]} 12. Nd2 $146 {[%emt 0:01:21]} ({Predecessor:} 12. Rd1 Nxc3 13. bxc3 Na4 14. Bb2 Be4 15. Rac1 b5 16. c4 Nxb2 17. Qxb2 a6 18. Qb3 {1-0 (37) Ivanchuk,V (2751)-Eljanov,P (2692) Odessa 2008}) 12... Nxd2 {[%emt 0:00:47] Black has an edge.} 13. Bxd2 {[%emt 0:00:07]} e5 {[%emt 0:00:24]} 14. e4 $1 {[%emt 0:01:12]} exd4 {[%emt 0:05:40]} 15. exf5 {[%emt 0:00:02] [#] Threatens to win with Ne4.} dxc3 {[%emt 0:00:01]} (15... Re8 {is interesting.} 16. Qf3 dxc3 17. Bxc3 Bxc3 18. Qxc3 gxf5 19. Rfd1 Qe7) 16. Bxc3 {[%emt 0:00:09]} Bxc3 {[%emt 0:00:04]} 17. bxc3 Qf6 {[%emt 0:00:53]} 18. fxg6 {[%emt 0:01:01]} fxg6 {[%emt 0:00:50]} 19. Qc2 {[%emt 0:02:02]} Rae8 {[%emt 0:01:30]} 20. Rab1 {[%emt 0:01:13]} Re5 {[%emt 0:00:26]} 21. Rfe1 {[%emt 0:01:49]} Rfe8 {[%emt 0:00:20]} 22. Rxe5 {[%emt 0:01:27]} Rxe5 {[%emt 0:00:54]} 23. h4 {[%emt 0:01:11]} Qe7 {[%emt 0:01:53]} (23... Qf5 $5 {[%cal Rf5c2]} 24. Qd1 Qf7 $11) 24. Bf3 {[%emt 0:01:03]} Kg7 {[%emt 0:00:32]} 25. Kg2 {[%emt 0:00:18]} Re1 {[%emt 0:01:37]} (25... h5 $14) 26. Rb4 {[%emt 0:01:55]} Re5 {[%emt 0:00:39]} 27. Rb1 {[%emt 0:02:12]} (27. Qb1 $16) 27... Qf7 {[%emt 0:00:49]} (27... Re1 $1 $11 {should be considered.}) 28. Rb4 {[%emt 0:00:53]} (28. Qd3 $14) 28... Rf5 {[%emt 0:00:19]} (28... Qe7 $11) 29. Be4 {[%emt 0:00:34]} Rf6 {[%emt 0:00:02] [#]} 30. a4 {[%emt 0:00:39]} (30. c4 $1 $16) 30... Nc8 $11 {[%emt 0:01:01]} 31. h5 {[%emt 0:00:54]} Nd6 {[%emt 0:00:28]} 32. hxg6 {[%emt 0:00:02]} hxg6 {[%emt 0:00:02]} 33. Bd3 {[%emt 0:00:08]} Qe6 {[%emt 0:01:53]} (33... b6 {is more complex.} 34. Rh4 Qd5+ 35. Kg1 Re6) 34. Qe2 {[%emt 0:00:19]} (34. Rh4 {looks sharper.} Qd5+ 35. Kg1 Re6 36. Qb1) 34... Qxe2 35. Bxe2 {[%emt 0:00:01][%mdl 4096] Endgame KRB-KRN} b6 {[%emt 0:00:47]} 36. Bd3 {[%emt 0:00:18]} Re6 {[%emt 0:00:15]} 37. Rg4 {[%emt 0:00:14]} Nf7 {[%emt 0:00:16]} 38. Bc4 {[%emt 0:00:44]} Rd6 {[%emt 0:00:21]} 39. Re4 {[%emt 0:00:10] And now Re7 would win.} Rd7 {[%emt 0:00:06] Against Re7} 40. f4 {[%emt 0:00:06]} (40. Re6 $5 {[%cal Re6c6]}) 40... Nd6 {[%emt 0:00:11] The position is equal.} 41. Rd4 {[%emt 0:00:00]} Rd8 {[%emt 0:00:04]} 42. Be2 {[%emt 0:00:05]} Nb7 43. Rxd8 {[%emt 0:00:09]} Nxd8 {[%emt 0:00:05] KB-KN} 44. Kf3 {[%emt 0:00:01]} Ne6 {[%emt 0:00:05]} 45. Bd1 {[%emt 0:00:05]} Kf6 {[%emt 0:00:05]} 46. g4 {[%emt 0:00:05]} g5 {[%emt 0:00:06]} 47. fxg5+ {[%emt 0:00:04]} Nxg5+ 48. Kf4 {[%emt 0:00:01]} Ne6+ {[%emt 0:00:07]} 49. Ke4 {[%emt 0:00:02]} Nc5+ {[%emt 0:00:11]} 50. Kd4 {[%emt 0:00:04]} Ne6+ {[%emt 0:00:01]} 51. Ke4 {[%emt 0:00:01]} Nc5+ {[%emt 0:00:11]} 52. Kd4 {[%emt 0:00:01]} Ne6+ {[%emt 0:00:01]} 53. Ke4 {[%emt 0:00:01]} Nc5+ {[%emt 0:00:06]} 54. Kd4 {[%emt 0:00:01] Weighted Error Value: White=0.13 (very precise) /Black=0.12 (very precise)} 1/2-1/2

[Event "1st Kallai Gabor Memorial 2022"]
[Site "Budapest"]
[Date "2022.11.29"]
[Round "5.3"]
[White "Berkes, Ferenc"]
[Black "Motylev, Alexander"]
[Result "1/2-1/2"]
[ECO "D30"]
[WhiteElo "2643"]
[BlackElo "2628"]
[Annotator "TA"]
[PlyCount "33"]
[EventDate "2022.11.28"]
[EventType "tourn"]
[EventCountry "HUN"]
[SourceTitle "playchess.com"]
[Source "ChessBase"]
[SourceQuality "1"]
[TimeControl "1500+5"]

{[%evp 9,33,0,0,0,8,4,0,-11,-17,-14,-15,-15,0,0,0,0,20,22,39,0,19,0,0,6,1,0]} 1. d4 {[%emt 0:00:07]} d5 {[%emt 0:00:29]} 2. c4 {[%emt 0:00:03]} e6 {[%emt 0:00:02]} 3. Nf3 {[%emt 0:00:17]} Nf6 {[%emt 0:00:03]} 4. e3 Bd6 5. b3 {[%emt 0:01:47]} O-O {[%emt 0:01:49]} 6. Bd3 {[%emt 0:00:09] D30: Queen's Gambit Declined: Systems without Nc3.} b6 {[%emt 0:00:04]} 7. O-O {[%emt 0:00:17]} Bb7 {[%emt 0:00:03]} 8. Ba3 {[%emt 0:00:11]} Bxa3 {[%emt 0:02:05]} 9. Nxa3 {[%emt 0:00:01][%cal Bb1a3,Ba3b5,Bb5c3][%mdl 32]} Qe7 {[%emt 0:00:02]} 10. Nb5 {[%emt 0:00:15]} c5 {[%emt 0:00:40]} 11. cxd5 {[%emt 0:00:46]} exd5 {[%emt 0:00:19]} 12. Rc1 {[%emt 0:00:17]} a6 {[%emt 0:01:00]} 13. Nc3 {[%emt 0:00:04]} Nbd7 {[%emt 0:00:05] [#]} 14. Re1 $146 {[%emt 0:01:51]} ({Predecessor:} 14. Qe2 Rfc8 15. Rfd1 g6 16. h3 b5 17. dxc5 Rxc5 18. Qb2 Rac8 19. Ne2 Rxc1 20. Rxc1 Rxc1+ 21. Qxc1 {1-0 (58) Dominguez Perez,L (2739)-Hammer,J (2631) Chess.com INT 2018}) 14... Rac8 {[%emt 0:01:45] The position is equal.} 15. Qe2 {[%emt 0:02:42]} b5 {[%emt 0:00:11]} 16. dxc5 {[%emt 0:00:09]} Nxc5 {[%emt 0:00:18]} 17. Bf5 {[%emt 0:03:22] A rather calm draw.   Weighted Error Value: White=0.07 (flawless) /Black=0.05 (flawless)} 1/2-1/2